[Event "Live Chess"]
[Site "Chess.com"]
[Date "2023.05.21"]
[Round "-"]
[White "smoggyrabbit"]
[Black "EdenHazard8"]
[Result "1-0"]
[WhiteElo "1712"]
[BlackElo "2020"]
[TimeControl "300"]
[EndTime "16:13:30 PDT"]
[Termination "smoggyrabbit won by resignation"]

1. d4 {[%clk 0:04:59.1]} 1... Nf6 {[%clk 0:04:58.8]} 2. Nf3 {[%clk 0:04:58.1]}
2... e6 {[%clk 0:04:58.3]} 3. e3 {[%clk 0:04:57.3]} 3... d5 {[%clk 0:04:56.1]}
4. Bd3 {[%clk 0:04:56.3]} 4... c5 {[%clk 0:04:54.9]} 5. b3 {[%clk 0:04:55.2]}
5... Nc6 {[%clk 0:04:54]} 6. Bb2 {[%clk 0:04:52.5]} 6... cxd4 {[%clk 0:04:53.3]}
7. exd4 {[%clk 0:04:51.3]} 7... Bd6 {[%clk 0:04:52.6]} 8. O-O {[%clk 0:04:50.2]}
8... a6 {[%clk 0:04:51.5]} 9. Nbd2 {[%clk 0:04:26.5]} 9... h6 {[%clk 0:04:48.7]}
10. Ne5 {[%clk 0:04:24.1]} 10... Qc7 {[%clk 0:04:45.8]} 11. f4 {[%clk
0:04:22.7]} 11... O-O {[%clk 0:04:42.2]} 12. a3 {[%clk 0:04:19.8]} 12... Nd7
{[%clk 0:04:30.7]} 13. Rf3 {[%clk 0:04:03.6]} 13... Ndxe5 {[%clk 0:04:28.5]} 14.
fxe5 {[%clk 0:04:03.5]} 14... Be7 {[%clk 0:04:27.9]} 15. Rg3 {[%clk 0:03:59]}
15... Bg5 {[%clk 0:04:25.7]} 16. h4 {[%clk 0:03:24.4]} 16... Bxh4 {[%clk
0:04:23.1]} 17. Rg4 {[%clk 0:03:14.4]} 17... Bg5 {[%clk 0:04:21.8]} 18. Nf3
{[%clk 0:03:08.8]} 18... Be7 {[%clk 0:04:11.7]} 19. Qd2 {[%clk 0:03:03.5]} 19...
Kh8 {[%clk 0:04:06.9]} 20. Kf2 {[%clk 0:02:50.7]} 20... f5 {[%clk 0:04:05.2]}
21. Rh1 {[%clk 0:02:24.3]} 21... Bg5 {[%clk 0:03:32.5]} 22. Rxg5 {[%clk
0:02:05.4]} 22... Kg8 {[%clk 0:03:30.9]} 23. Rxh6 {[%clk 0:01:51.1]} 1-0

[Event "Live Chess"]
[Site "Chess.com"]
[Date "2023.05.21"]
[Round "-"]
[White "karimghalambaz"]
[Black "jennybobby44"]
[Result "0-1"]
[WhiteElo "1279"]
[BlackElo "1845"]
[TimeControl "300"]
[EndTime "16:13:37 PDT"]
[Termination "jennybobby44 won on time"]

1. d4 {[%clk 0:04:54.7]} 1... Nf6 {[%clk 0:04:58.8]} 2. Bf4 {[%clk 0:04:50.8]}
2... d6 {[%clk 0:04:56.9]} 3. e3 {[%clk 0:04:48.2]} 3... g6 {[%clk 0:04:56.1]}
4. Bd3 {[%clk 0:04:40.9]} 4... Bg7 {[%clk 0:04:55]} 5. Nf3 {[%clk 0:04:38.8]}
5... O-O {[%clk 0:04:54.2]} 6. Nc3 {[%clk 0:04:36.1]} 6... Nh5 {[%clk
0:04:53.3]} 7. Bg5 {[%clk 0:04:31.1]} 7... h6 {[%clk 0:04:51.5]} 8. Bh4 {[%clk
0:04:28.7]} 8... g5 {[%clk 0:04:50.9]} 9. Nxg5 {[%clk 0:04:23.2]} 9... Nf6
{[%clk 0:04:27.3]} 10. Nf3 {[%clk 0:04:14.9]} 10... Bg4 {[%clk 0:04:24.4]} 11.
Bg3 {[%clk 0:04:05.3]} 11... Nbd7 {[%clk 0:04:20.6]} 12. O-O {[%clk 0:04:01.9]}
12... c5 {[%clk 0:04:19.3]} 13. h3 {[%clk 0:03:57.1]} 13... Bh5 {[%clk
0:04:17.4]} 14. Re1 {[%clk 0:03:45.3]} 14... Re8 {[%clk 0:04:13.9]} 15. d5
{[%clk 0:03:36]} 15... a6 {[%clk 0:04:03.6]} 16. e4 {[%clk 0:03:31.5]} 16... b5
{[%clk 0:03:57.4]} 17. Be2 {[%clk 0:03:15.3]} 17... b4 {[%clk 0:03:52.7]} 18.
Nb1 {[%clk 0:03:04.2]} 18... Nxe4 {[%clk 0:03:51.2]} 19. Bh2 {[%clk 0:02:57.5]}
19... Bxb2 {[%clk 0:03:39]} 20. Nbd2 {[%clk 0:02:49.9]} 20... Nc3 {[%clk
0:03:19.7]} 21. Rb1 {[%clk 0:02:14.8]} 21... Nxd1 {[%clk 0:03:18.1]} 22. Rxb2
{[%clk 0:02:11]} 22... Nc3 {[%clk 0:03:15.8]} 23. Rb3 {[%clk 0:02:03.3]} 23...
Nxe2+ {[%clk 0:03:12.7]} 24. Rxe2 {[%clk 0:01:59.9]} 24... Bg6 {[%clk
0:03:10.7]} 25. Ne4 {[%clk 0:01:54]} 25... Kg7 {[%clk 0:03:01.4]} 26. c4 {[%clk
0:01:45.1]} 26... Nf6 {[%clk 0:03:00.6]} 27. Nxf6 {[%clk 0:01:42.2]} 27... Kxf6
{[%clk 0:02:59.5]} 28. Nh4 {[%clk 0:01:33.4]} 28... Kg7 {[%clk 0:02:53.5]} 29.
Rbe3 {[%clk 0:01:26.7]} 29... Ra7 {[%clk 0:02:48.7]} 30. Nf3 {[%clk 0:01:19]}
30... a5 {[%clk 0:02:46.7]} 31. g4 {[%clk 0:01:16.9]} 31... a4 {[%clk
0:02:45.3]} 32. g5 {[%clk 0:01:13.8]} 32... hxg5 {[%clk 0:02:43.6]} 33. Nxg5
{[%clk 0:01:12.1]} 33... e5 {[%clk 0:02:36]} 34. dxe6 {[%clk 0:01:08.3]} 34...
Qxg5+ {[%clk 0:02:33.8]} 35. Rg3 {[%clk 0:00:52.4]} 35... Qc1+ {[%clk
0:02:32.4]} 36. Kg2 {[%clk 0:00:42.9]} 36... Rxe6 {[%clk 0:02:27.2]} 37. Rxe6
{[%clk 0:00:37.2]} 37... fxe6 {[%clk 0:02:24.5]} 38. Re3 {[%clk 0:00:35.2]}
38... e5 {[%clk 0:02:18.7]} 39. h4 {[%clk 0:00:28.5]} 39... Qxe3 {[%clk
0:02:17.8]} 40. fxe3 {[%clk 0:00:25.3]} 40... b3 {[%clk 0:02:17]} 41. axb3
{[%clk 0:00:23.4]} 41... axb3 {[%clk 0:02:16]} 42. h5 {[%clk 0:00:16.9]} 42...
Be4+ {[%clk 0:02:13.7]} 43. Kg3 {[%clk 0:00:14.3]} 43... b2 {[%clk 0:02:12.5]}
44. Kh4 {[%clk 0:00:12.2]} 44... b1=Q {[%clk 0:02:10.3]} 45. Kg5 {[%clk
0:00:10.2]} 45... Bh7 {[%clk 0:02:01.7]} 46. h6+ {[%clk 0:00:06.4]} 46... Kf7
{[%clk 0:02:00.7]} 47. Bg3 {[%clk 0:00:00.2]} 47... Qg6+ {[%clk 0:01:58.9]} 0-1

[Event "Live Chess"]
[Site "Chess.com"]
[Date "2023.05.21"]
[Round "-"]
[White "Fazer180"]
[Black "blowerd"]
[Result "1-0"]
[WhiteElo "1757"]
[BlackElo "1380"]
[TimeControl "300"]
[EndTime "16:13:44 PDT"]
[Termination "Fazer180 won on time"]

1. e4 {[%clk 0:04:52.9]} 1... e5 {[%clk 0:04:56.4]} 2. Nf3 {[%clk 0:04:51.5]}
2... Nc6 {[%clk 0:04:55.1]} 3. d4 {[%clk 0:04:50.4]} 3... exd4 {[%clk 0:04:53]}
4. Nxd4 {[%clk 0:04:50.1]} 4... Nxd4 {[%clk 0:04:48.8]} 5. Qxd4 {[%clk
0:04:47.6]} 5... Nf6 {[%clk 0:04:45.9]} 6. Nc3 {[%clk 0:04:45.1]} 6... c5 {[%clk
0:04:42.6]} 7. Qd1 {[%clk 0:04:40.4]} 7... Be7 {[%clk 0:04:37.4]} 8. Bf4 {[%clk
0:04:36.4]} 8... d6 {[%clk 0:04:35.3]} 9. Bc4 {[%clk 0:04:14.9]} 9... O-O {[%clk
0:04:31]} 10. O-O {[%clk 0:04:12.9]} 10... Re8 {[%clk 0:04:24.4]} 11. Re1 {[%clk
0:04:06.6]} 11... Bg4 {[%clk 0:04:21.3]} 12. f3 {[%clk 0:04:01.1]} 12... Bh5
{[%clk 0:04:18]} 13. Nb5 {[%clk 0:03:51.5]} 13... a6 {[%clk 0:04:09.7]} 14. Nxd6
{[%clk 0:03:46.9]} 14... Bxd6 {[%clk 0:03:57]} 15. Qxd6 {[%clk 0:03:46.8]} 15...
b5 {[%clk 0:03:39.4]} 16. Bf1 {[%clk 0:03:10.5]} 16... c4 {[%clk 0:03:34.3]} 17.
Rad1 {[%clk 0:02:59.7]} 17... Nxe4 {[%clk 0:03:11.3]} 18. Qxd8 {[%clk
0:02:48.3]} 18... Raxd8 {[%clk 0:03:05]} 19. Rxd8 {[%clk 0:02:43.4]} 19... Rxd8
{[%clk 0:03:03.4]} 20. fxe4 {[%clk 0:02:38.2]} 20... f6 {[%clk 0:02:59.9]} 21.
Be2 {[%clk 0:02:27.3]} 21... Bxe2 {[%clk 0:02:55.2]} 22. Rxe2 {[%clk 0:02:27.2]}
22... Rd1+ {[%clk 0:02:52.8]} 23. Kf2 {[%clk 0:02:25.4]} 23... g5 {[%clk
0:02:49.2]} 24. Rd2 {[%clk 0:02:12.8]} 24... Rb1 {[%clk 0:02:37.7]} 25. Bc7
{[%clk 0:01:53.5]} 25... Rxb2 {[%clk 0:02:34.4]} 26. a3 {[%clk 0:01:46.6]} 26...
Ra2 {[%clk 0:02:27.2]} 27. Bd6 {[%clk 0:01:45.2]} 27... Kf7 {[%clk 0:02:26.2]}
28. Ke3 {[%clk 0:01:41.2]} 28... Ke6 {[%clk 0:02:24.6]} 29. Bb4 {[%clk
0:01:36.9]} 29... a5 {[%clk 0:02:21]} 30. Bf8 {[%clk 0:01:24.8]} 30... Kf7
{[%clk 0:02:08.7]} 31. Bc5 {[%clk 0:01:22.1]} 31... b4 {[%clk 0:01:47.7]} 32.
axb4 {[%clk 0:01:18.6]} 32... a4 {[%clk 0:01:46.3]} 33. b5 {[%clk 0:01:15.5]}
33... Ra1 {[%clk 0:01:43.3]} 34. b6 {[%clk 0:01:11.4]} 34... a3 {[%clk
0:01:42.3]} 35. Rd7+ {[%clk 0:01:05.5]} 35... Kg6 {[%clk 0:01:40.5]} 36. b7
{[%clk 0:01:02.2]} 36... a2 {[%clk 0:01:32.7]} 37. Bd4 {[%clk 0:00:49.4]} 37...
Re1+ {[%clk 0:01:29.7]} 38. Kd2 {[%clk 0:00:47.1]} 38... Rb1 {[%clk 0:01:12.3]}
39. Rc7 {[%clk 0:00:29.4]} 39... Kh5 {[%clk 0:00:50.2]} 40. Bc3 {[%clk
0:00:27.2]} 40... Kg6 {[%clk 0:00:38.8]} 41. Ke3 {[%clk 0:00:26.6]} 41... Re1+
{[%clk 0:00:18]} 42. Kd4 {[%clk 0:00:23.2]} 42... Rd1+ {[%clk 0:00:09.1]} 43.
Kxc4 {[%clk 0:00:22.2]} 43... Rd8 {[%clk 0:00:03.4]} 44. Rc8 {[%clk 0:00:19.5]}
1-0

[Event "Live Chess"]
[Site "Chess.com"]
[Date "2023.05.21"]
[Round "-"]
[White "Jo1ts"]
[Black "KeithArkell"]
[Result "0-1"]
[WhiteElo "778"]
[BlackElo "2611"]
[TimeControl "300"]
[EndTime "16:14:02 PDT"]
[Termination "KeithArkell won by resignation"]

1. d4 {[%clk 0:04:57.6]} 1... c5 {[%clk 0:04:59.1]} 2. c3 {[%clk 0:04:52.4]}
2... b6 {[%clk 0:04:56.3]} 3. Bf4 {[%clk 0:04:46.7]} 3... Bb7 {[%clk 0:04:55.2]}
4. e3 {[%clk 0:04:42.1]} 4... Nf6 {[%clk 0:04:54.3]} 5. Nf3 {[%clk 0:04:38.5]}
5... e6 {[%clk 0:04:53.4]} 6. Nbd2 {[%clk 0:04:33.3]} 6... Be7 {[%clk
0:04:52.2]} 7. Bd3 {[%clk 0:04:29.9]} 7... Nh5 {[%clk 0:04:50.7]} 8. Bg3 {[%clk
0:04:23.7]} 8... Nc6 {[%clk 0:04:48.9]} 9. Ne5 {[%clk 0:04:14.7]} 9... Nxg3
{[%clk 0:04:47.8]} 10. hxg3 {[%clk 0:04:10.6]} 10... Nxe5 {[%clk 0:04:46.5]} 11.
dxe5 {[%clk 0:04:09.5]} 11... Bxg2 {[%clk 0:04:45.3]} 12. Rg1 {[%clk 0:04:01.3]}
12... Bc6 {[%clk 0:04:44.1]} 13. Nf3 {[%clk 0:03:56.6]} 13... h5 {[%clk
0:04:42.5]} 14. Qc2 {[%clk 0:03:45.6]} 14... Bxf3 {[%clk 0:04:40.3]} 0-1

[Event "Live Chess"]
[Site "Chess.com"]
[Date "2023.05.21"]
[Round "-"]
[White "BJAW87"]
[Black "risinghelios"]
[Result "0-1"]
[WhiteElo "1437"]
[BlackElo "1890"]
[TimeControl "300"]
[EndTime "16:14:16 PDT"]
[Termination "risinghelios won by resignation"]

1. e4 {[%clk 0:04:59.1]} 1... d5 {[%clk 0:04:59.2]} 2. exd5 {[%clk 0:04:58.2]}
2... Nf6 {[%clk 0:04:58.7]} 3. d4 {[%clk 0:04:56.6]} 3... Nxd5 {[%clk
0:04:58.3]} 4. Nf3 {[%clk 0:04:56.2]} 4... Bg4 {[%clk 0:04:56.5]} 5. Be2 {[%clk
0:04:54.2]} 5... Nc6 {[%clk 0:04:56]} 6. c3 {[%clk 0:04:53.2]} 6... e6 {[%clk
0:04:54.8]} 7. O-O {[%clk 0:04:51.9]} 7... Bd6 {[%clk 0:04:54.5]} 8. h3 {[%clk
0:04:50.7]} 8... h5 {[%clk 0:04:53.5]} 9. Ng5 {[%clk 0:04:01]} 9... Bxe2 {[%clk
0:04:51.7]} 10. Qxe2 {[%clk 0:04:00.9]} 10... Qd7 {[%clk 0:04:49.7]} 11. Nd2
{[%clk 0:03:30.7]} 11... O-O-O {[%clk 0:04:45.2]} 12. Nde4 {[%clk 0:03:24.5]}
12... f6 {[%clk 0:04:38]} 13. Nxd6+ {[%clk 0:03:19.7]} 13... Qxd6 {[%clk
0:04:32.9]} 14. Nf7 {[%clk 0:03:18.3]} 14... Qe7 {[%clk 0:04:28.7]} 15. Nxd8
{[%clk 0:03:13.3]} 15... Rxd8 {[%clk 0:04:28.6]} 16. Re1 {[%clk 0:03:09.6]}
16... Re8 {[%clk 0:04:24.9]} 17. Qxh5 {[%clk 0:03:06.6]} 17... Nd8 {[%clk
0:04:17.5]} 18. Bd2 {[%clk 0:02:43.5]} 18... Nb6 {[%clk 0:04:15.4]} 19. b3
{[%clk 0:02:39.7]} 19... Nf7 {[%clk 0:04:11.1]} 20. c4 {[%clk 0:02:31.2]} 20...
Rh8 {[%clk 0:04:10.2]} 21. Qf3 {[%clk 0:02:26.4]} 21... Kb8 {[%clk 0:03:58.8]}
22. d5 {[%clk 0:02:24.3]} 22... e5 {[%clk 0:03:54.2]} 23. c5 {[%clk 0:02:13.2]}
23... Nc8 {[%clk 0:03:51.5]} 24. b4 {[%clk 0:02:07.9]} 24... Rd8 {[%clk
0:03:45]} 25. Bc3 {[%clk 0:01:54.3]} 25... Qd7 {[%clk 0:03:35.4]} 26. Rad1
{[%clk 0:01:52]} 26... Qa4 {[%clk 0:03:33.1]} 27. Qe2 {[%clk 0:01:45.8]} 27...
b6 {[%clk 0:03:23.9]} 28. cxb6 {[%clk 0:01:41.9]} 28... Nxb6 {[%clk 0:03:23.8]}
29. Rd2 {[%clk 0:01:23.7]} 29... Rxd5 {[%clk 0:03:21.5]} 30. Rxd5 {[%clk
0:01:22.6]} 30... Nxd5 {[%clk 0:03:21.4]} 31. Ba1 {[%clk 0:01:18.2]} 31... Nd6
{[%clk 0:03:15]} 32. Qg4 {[%clk 0:01:12.7]} 32... g5 {[%clk 0:03:07.1]} 33. Qe6
{[%clk 0:01:08.9]} 33... Nxb4 {[%clk 0:03:03.9]} 34. Qxf6 {[%clk 0:01:01.5]}
34... Nc6 {[%clk 0:02:58.6]} 35. Bxe5 {[%clk 0:00:58]} 35... Nxe5 {[%clk
0:02:56.6]} 36. Qxe5 {[%clk 0:00:55.6]} 36... Qc6 {[%clk 0:02:52.1]} 37. Qh8+
{[%clk 0:00:52.9]} 37... Kb7 {[%clk 0:02:50.3]} 38. Rb1+ {[%clk 0:00:51.8]}
38... Ka6 {[%clk 0:02:49.1]} 39. Qd4 {[%clk 0:00:39.3]} 39... Nb5 {[%clk
0:02:46]} 40. h4 {[%clk 0:00:36.2]} 40... Nxd4 {[%clk 0:02:44.1]} 0-1

[Event "Live Chess"]
[Site "Chess.com"]
[Date "2023.05.21"]
[Round "-"]
[White "Brooms1989"]
[Black "grillage"]
[Result "0-1"]
[WhiteElo "1088"]
[BlackElo "1847"]
[TimeControl "300"]
[EndTime "16:14:17 PDT"]
[Termination "grillage won by checkmate"]

1. e4 {[%clk 0:04:54.1]} 1... d5 {[%clk 0:04:58.5]} 2. exd5 {[%clk 0:04:52.2]}
2... Qxd5 {[%clk 0:04:57.2]} 3. Nc3 {[%clk 0:04:51.8]} 3... Qd8 {[%clk 0:04:55]}
4. d4 {[%clk 0:04:50.7]} 4... Nf6 {[%clk 0:04:53.2]} 5. Nf3 {[%clk 0:04:49.6]}
5... Bg4 {[%clk 0:04:51.4]} 6. Be3 {[%clk 0:04:44.8]} 6... e6 {[%clk 0:04:48.9]}
7. h3 {[%clk 0:04:43.5]} 7... Bxf3 {[%clk 0:04:47.6]} 8. Qxf3 {[%clk 0:04:43.4]}
8... c6 {[%clk 0:04:46.9]} 9. O-O-O {[%clk 0:04:41.1]} 9... Bb4 {[%clk
0:04:44.5]} 10. Bg5 {[%clk 0:04:36.4]} 10... Bxc3 {[%clk 0:04:39.1]} 11. Qxc3
{[%clk 0:04:34.8]} 11... Ne4 {[%clk 0:04:31.1]} 12. Qe3 {[%clk 0:04:25.4]} 12...
Qxg5 {[%clk 0:04:28.1]} 13. Qxg5 {[%clk 0:04:20.1]} 13... Nxg5 {[%clk
0:04:27.2]} 14. Bd3 {[%clk 0:04:18.3]} 14... Nd7 {[%clk 0:04:22.5]} 15. h4
{[%clk 0:04:16.8]} 15... f6 {[%clk 0:04:03]} 16. hxg5 {[%clk 0:04:13.5]} 16...
fxg5 {[%clk 0:04:02.1]} 17. Rxh7 {[%clk 0:04:11.2]} 17... Rxh7 {[%clk
0:03:59.7]} 18. Bxh7 {[%clk 0:04:11.1]} 18... O-O-O {[%clk 0:03:57.8]} 19. Re1
{[%clk 0:04:06.7]} 19... Nf6 {[%clk 0:03:53.3]} 20. Bd3 {[%clk 0:04:02]} 20...
Kd7 {[%clk 0:03:52.3]} 21. c3 {[%clk 0:03:48]} 21... Nd5 {[%clk 0:03:50.5]} 22.
Be2 {[%clk 0:03:40.8]} 22... Rf8 {[%clk 0:03:48.9]} 23. f3 {[%clk 0:03:39.1]}
23... Nf4 {[%clk 0:03:47.7]} 24. Bf1 {[%clk 0:03:37.1]} 24... Rh8 {[%clk
0:03:46.6]} 25. Re5 {[%clk 0:03:32.9]} 25... Rh1 {[%clk 0:03:43.4]} 26. Rxg5
{[%clk 0:03:29.5]} 26... Rxf1+ {[%clk 0:03:41.1]} 27. Kd2 {[%clk 0:03:29.1]}
27... g6 {[%clk 0:03:31.5]} 28. Ke3 {[%clk 0:03:26.8]} 28... Nd5+ {[%clk
0:03:29.4]} 29. Kd3 {[%clk 0:03:22.1]} 29... Ne7 {[%clk 0:03:25.1]} 30. Ke4
{[%clk 0:03:15.7]} 30... Rb1 {[%clk 0:03:20.7]} 31. b3 {[%clk 0:03:09]} 31...
Rb2 {[%clk 0:03:17.4]} 32. Ke5 {[%clk 0:03:05.1]} 32... Rxa2 {[%clk 0:03:13.1]}
33. Rg3 {[%clk 0:03:03]} 33... Rc2 {[%clk 0:03:04.3]} 34. Kf6 {[%clk 0:02:48.8]}
34... Rxc3 {[%clk 0:03:01]} 35. Rh3 {[%clk 0:02:48.2]} 35... Kd6 {[%clk
0:02:48]} 36. Rh7 {[%clk 0:02:39.4]} 36... Nd5+ {[%clk 0:02:44.9]} 37. Kxg6
{[%clk 0:02:36.6]} 37... Rxb3 {[%clk 0:02:43.9]} 38. Kg5 {[%clk 0:02:28.7]}
38... a5 {[%clk 0:02:39.3]} 39. Rh8 {[%clk 0:02:25.2]} 39... a4 {[%clk
0:02:38.5]} 40. Ra8 {[%clk 0:02:24.1]} 40... a3 {[%clk 0:02:37.7]} 41. g4 {[%clk
0:02:21.2]} 41... Nb4 {[%clk 0:02:30.2]} 42. Kf6 {[%clk 0:02:16.2]} 42... Na6
{[%clk 0:02:27.5]} 43. g5 {[%clk 0:02:12.1]} 43... a2 {[%clk 0:02:26.5]} 44. g6
{[%clk 0:02:11.7]} 44... a1=Q {[%clk 0:02:23.4]} 45. Rd8+ {[%clk 0:02:11.2]}
45... Kc7 {[%clk 0:02:21]} 46. Re8 {[%clk 0:01:59.2]} 46... Qxd4+ {[%clk
0:02:16.2]} 47. Kf7 {[%clk 0:01:58.1]} 47... Rxf3+ {[%clk 0:02:14.7]} 48. Kg8
{[%clk 0:01:53.2]} 48... Rg3 {[%clk 0:02:05.9]} 49. Re7+ {[%clk 0:01:50.3]}
49... Kb6 {[%clk 0:02:04.6]} 50. Rxe6 {[%clk 0:01:48.5]} 50... Qd8+ {[%clk
0:02:00.6]} 51. Kf7 {[%clk 0:01:46.4]} 51... Rf3+ {[%clk 0:01:57.2]} 52. Kg7
{[%clk 0:01:44.7]} 52... Qd7+ {[%clk 0:01:56]} 53. Kh8 {[%clk 0:01:42.4]} 53...
Qxe6 {[%clk 0:01:54.9]} 54. g7 {[%clk 0:01:41.7]} 54... Rh3# {[%clk 0:01:52.3]}
0-1

[Event "Live Chess"]
[Site "Chess.com"]
[Date "2023.05.21"]
[Round "-"]
[White "nigelst"]
[Black "JoshMcK"]
[Result "1/2-1/2"]
[WhiteElo "1801"]
[BlackElo "1522"]
[TimeControl "300"]
[EndTime "16:14:22 PDT"]
[Termination "Game drawn by repetition"]

1. e4 {[%clk 0:04:58.5]} 1... d6 {[%clk 0:04:57]} 2. d4 {[%clk 0:04:56.4]} 2...
Nf6 {[%clk 0:04:55.9]} 3. Nc3 {[%clk 0:04:55.5]} 3... g6 {[%clk 0:04:54.3]} 4.
f4 {[%clk 0:04:54.9]} 4... Bg7 {[%clk 0:04:53.2]} 5. Nf3 {[%clk 0:04:54.3]} 5...
O-O {[%clk 0:04:51.6]} 6. Bd3 {[%clk 0:04:52.1]} 6... Nbd7 {[%clk 0:04:50.3]} 7.
O-O {[%clk 0:04:51]} 7... c6 {[%clk 0:04:43.5]} 8. Be3 {[%clk 0:04:49.9]} 8...
Ng4 {[%clk 0:04:39.8]} 9. Bf2 {[%clk 0:04:47]} 9... Nxf2 {[%clk 0:04:38.3]} 10.
Rxf2 {[%clk 0:04:45.4]} 10... e5 {[%clk 0:04:37.5]} 11. dxe5 {[%clk 0:04:42.1]}
11... dxe5 {[%clk 0:04:36.9]} 12. fxe5 {[%clk 0:04:38]} 12... Nxe5 {[%clk
0:04:36]} 13. Nxe5 {[%clk 0:04:36.9]} 13... Bxe5 {[%clk 0:04:35.9]} 14. Rf1
{[%clk 0:04:35]} 14... Qh4 {[%clk 0:04:23.1]} 15. g3 {[%clk 0:04:18.7]} 15...
Bxg3 {[%clk 0:04:15.9]} 16. hxg3 {[%clk 0:04:17.6]} 16... Qxg3+ {[%clk
0:04:15.1]} 17. Kh1 {[%clk 0:04:16.6]} 17... Qh3+ {[%clk 0:03:53.4]} 18. Kg1
{[%clk 0:04:15.4]} 18... Qg3+ {[%clk 0:03:53.3]} 19. Kh1 {[%clk 0:04:14.4]}
19... Qh3+ {[%clk 0:03:53.2]} 20. Kg1 {[%clk 0:04:13.7]} 20... Qg3+ {[%clk
0:03:53.1]} 1/2-1/2

[Event "Live Chess"]
[Site "Chess.com"]
[Date "2023.05.21"]
[Round "-"]
[White "youtookmyhorse"]
[Black "birdseed45"]
[Result "0-1"]
[WhiteElo "731"]
[BlackElo "1865"]
[TimeControl "300"]
[EndTime "16:14:44 PDT"]
[Termination "birdseed45 won by checkmate"]

1. e4 {[%clk 0:04:51.8]} 1... c5 {[%clk 0:04:58.8]} 2. Nc3 {[%clk 0:04:51.3]}
2... Nc6 {[%clk 0:04:58]} 3. Nf3 {[%clk 0:04:49.5]} 3... g6 {[%clk 0:04:57.5]}
4. Bb5 {[%clk 0:04:48.7]} 4... Bg7 {[%clk 0:04:56.7]} 5. d4 {[%clk 0:04:47.7]}
5... cxd4 {[%clk 0:04:55.1]} 6. Bxc6 {[%clk 0:04:44.1]} 6... dxc3 {[%clk
0:04:50.3]} 7. b3 {[%clk 0:04:27.3]} 7... bxc6 {[%clk 0:04:46.3]} 8. O-O {[%clk
0:04:25.4]} 8... Nf6 {[%clk 0:04:43.5]} 9. e5 {[%clk 0:04:20.6]} 9... Nd5 {[%clk
0:04:41.4]} 10. Bg5 {[%clk 0:04:17.5]} 10... O-O {[%clk 0:04:38.9]} 11. Qc1
{[%clk 0:04:13.5]} 11... Qc7 {[%clk 0:04:31.8]} 12. Bh6 {[%clk 0:04:12.7]} 12...
d6 {[%clk 0:04:25.1]} 13. Bxg7 {[%clk 0:04:11.6]} 13... Kxg7 {[%clk 0:04:23.1]}
14. Ng5 {[%clk 0:04:09.6]} 14... dxe5 {[%clk 0:04:18.3]} 15. Qd1 {[%clk
0:04:00.5]} 15... Bf5 {[%clk 0:04:10.2]} 16. Qf3 {[%clk 0:03:52.2]} 16... e4
{[%clk 0:03:54.1]} 17. Qe2 {[%clk 0:03:42.1]} 17... Nf4 {[%clk 0:03:49.5]} 18.
Qc4 {[%clk 0:03:36.2]} 18... h6 {[%clk 0:03:36.5]} 19. Qxc3+ {[%clk 0:03:33.6]}
19... f6 {[%clk 0:03:27.8]} 20. g4 {[%clk 0:03:22.6]} 20... Bxg4 {[%clk
0:03:17.7]} 21. f3 {[%clk 0:03:19]} 21... Ne2+ {[%clk 0:03:13.1]} 22. Kh1 {[%clk
0:03:13.4]} 22... Nxc3 {[%clk 0:03:10.7]} 23. Nxe4 {[%clk 0:03:05.5]} 23... Nxe4
{[%clk 0:03:06]} 24. fxe4 {[%clk 0:03:04.4]} 24... Rad8 {[%clk 0:03:00.4]} 25.
Rad1 {[%clk 0:03:02.6]} 25... Rxd1 {[%clk 0:02:57.7]} 26. Rxd1 {[%clk
0:03:02.1]} 26... Bxd1 {[%clk 0:02:56.1]} 27. c4 {[%clk 0:03:01.2]} 27... Qf4
{[%clk 0:02:52.2]} 28. a4 {[%clk 0:03:00.8]} 28... Bf3+ {[%clk 0:02:48.4]} 29.
Kg1 {[%clk 0:02:58.3]} 29... Qg4+ {[%clk 0:02:47.5]} 30. Kf2 {[%clk 0:02:56.2]}
30... Qg2+ {[%clk 0:02:45.4]} 31. Ke3 {[%clk 0:02:55]} 31... Rd8 {[%clk
0:02:43.4]} 32. Kf4 {[%clk 0:02:53.1]} 32... g5+ {[%clk 0:02:40.6]} 33. Kf5
{[%clk 0:02:51]} 33... Qg4# {[%clk 0:02:38.1]} 0-1

[Event "Live Chess"]
[Site "Chess.com"]
[Date "2023.05.21"]
[Round "-"]
[White "xx_blindpuffin_xx"]
[Black "Long1968"]
[Result "1-0"]
[WhiteElo "2208"]
[BlackElo "1209"]
[TimeControl "300"]
[EndTime "16:14:52 PDT"]
[Termination "xx_blindpuffin_xx won by resignation"]

1. Nf3 {[%clk 0:04:56.5]} 1... d5 {[%clk 0:04:57.2]} 2. g3 {[%clk 0:04:54.4]}
2... c5 {[%clk 0:04:54.6]} 3. Bg2 {[%clk 0:04:52.6]} 3... Nc6 {[%clk 0:04:51.7]}
4. O-O {[%clk 0:04:51.4]} 4... e5 {[%clk 0:04:49.1]} 5. d3 {[%clk 0:04:50.5]}
5... Nf6 {[%clk 0:04:46.4]} 6. Nbd2 {[%clk 0:04:49]} 6... Bg4 {[%clk 0:04:42.9]}
7. c4 {[%clk 0:04:46]} 7... dxc4 {[%clk 0:04:23.2]} 8. Nxc4 {[%clk 0:04:44.3]}
8... Bd6 {[%clk 0:04:07.8]} 9. b3 {[%clk 0:04:36.3]} 9... O-O {[%clk 0:03:56.7]}
10. Bb2 {[%clk 0:04:34.5]} 10... Re8 {[%clk 0:03:38.7]} 11. Rc1 {[%clk
0:04:27.3]} 11... Bxf3 {[%clk 0:03:22.6]} 12. Bxf3 {[%clk 0:04:25.6]} 12... Nd4
{[%clk 0:03:19.4]} 13. Bxb7 {[%clk 0:04:24.2]} 13... Rb8 {[%clk 0:03:11.6]} 14.
Bg2 {[%clk 0:04:23.6]} 14... Qc7 {[%clk 0:02:49.2]} 15. e3 {[%clk 0:04:21]}
15... Nf5 {[%clk 0:02:39.3]} 16. Qc2 {[%clk 0:04:16.7]} 16... e4 {[%clk
0:02:12]} 17. dxe4 {[%clk 0:04:13.1]} 17... Nxg3 {[%clk 0:02:05.4]} 18. hxg3
{[%clk 0:04:08.2]} 18... Bxg3 {[%clk 0:02:01.9]} 19. fxg3 {[%clk 0:04:06.8]}
19... Qxg3 {[%clk 0:01:59.2]} 20. Qf2 {[%clk 0:04:05.5]} 20... Qc7 {[%clk
0:01:44]} 21. Bxf6 {[%clk 0:04:00.8]} 21... gxf6 {[%clk 0:01:37.4]} 22. Qxf6
{[%clk 0:04:00.7]} 22... Re6 {[%clk 0:01:33]} 23. Qf4 {[%clk 0:03:59.3]} 23...
Qb7 {[%clk 0:01:14.8]} 24. Nd6 {[%clk 0:03:40.6]} 24... Qc7 {[%clk 0:00:30.2]}
25. Nxf7 {[%clk 0:03:36]} 25... Qxf4 {[%clk 0:00:23.4]} 26. Rxf4 {[%clk
0:03:35.8]} 26... Rf8 {[%clk 0:00:17]} 27. Ng5 {[%clk 0:03:22.6]} 27... Rd8
{[%clk 0:00:07.9]} 28. Nxe6 {[%clk 0:03:20.8]} 1-0